{"text_format":"3","workbook":"xlsx","n_sheets":2,"sheets":["Lagerliste over udstyr","Indstillinger"],"not_rendered":{"defined_names":4},"read":"whole","date_system":"1900"}

{"sheet":"Lagerliste over udstyr","index":0,"n_rows":35,"n_cols":6,"rows_kept":35,"merged":[[0,1,2,2],[0,4,0,5]]}
[]
[{"$nulls":4},"Fremhæv varer, der er ældre end:"]
[{"$nulls":4},4]
[]
[null,"UDSTYRS-ID","VARENAVN","TILDELT","UDSTEDELSESDATO","VARENS ALDER"]
[null,"VARE 0001","stol","Medarbejder 1",{"$f":"TODAY()-25","v":"2012-11-02"},{"$f":"IF(tblUdstyrslagerliste[[#This Row],[UDSTEDELSESDATO]]<>\"\",TODAY()-tblUdstyrslagerliste[[#This Row],[UDSTEDELSESDATO]],\"\")","v":{"v":25,"d":"25 dage"}}]
[null,"VARE 0002","laserprinter","Medarbejder 2",{"$f":"TODAY()-479","v":"2011-08-06"},{"$f":"IF(tblUdstyrslagerliste[[#This Row],[UDSTEDELSESDATO]]<>\"\",TODAY()-tblUdstyrslagerliste[[#This Row],[UDSTEDELSESDATO]],\"\")","v":{"v":479,"d":"479 dage"}}]
[null,"VARE 0003","scanner","Medarbejder 3",{"$f":"TODAY()-177","v":"2012-06-03"},{"$f":"IF(tblUdstyrslagerliste[[#This Row],[UDSTEDELSESDATO]]<>\"\",TODAY()-tblUdstyrslagerliste[[#This Row],[UDSTEDELSESDATO]],\"\")","v":{"v":177,"d":"177 dage"}}]
[null,"VARE 0004","laserprinter","Medarbejder 7",{"$f":"TODAY()-18","v":"2012-11-09"},{"$f":"IF(tblUdstyrslagerliste[[#This Row],[UDSTEDELSESDATO]]<>\"\",TODAY()-tblUdstyrslagerliste[[#This Row],[UDSTEDELSESDATO]],\"\")","v":{"v":18,"d":"18 dage"}}]
[null,"VARE 0005","kaffemaskine","Medarbejder 20",{"$f":"TODAY()-227","v":"2012-04-14"},{"$f":"IF(tblUdstyrslagerliste[[#This Row],[UDSTEDELSESDATO]]<>\"\",TODAY()-tblUdstyrslagerliste[[#This Row],[UDSTEDELSESDATO]],\"\")","v":{"v":227,"d":"227 dage"}}]
[null,"VARE 0006","scanner","Medarbejder 14",{"$f":"TODAY()-50","v":"2012-10-08"},{"$f":"IF(tblUdstyrslagerliste[[#This Row],[UDSTEDELSESDATO]]<>\"\",TODAY()-tblUdstyrslagerliste[[#This Row],[UDSTEDELSESDATO]],\"\")","v":{"v":50,"d":"50 dage"}}]
[null,"VARE 0007","bord","Medarbejder 4",{"$f":"TODAY()-120","v":"2012-07-30"},{"$f":"IF(tblUdstyrslagerliste[[#This Row],[UDSTEDELSESDATO]]<>\"\",TODAY()-tblUdstyrslagerliste[[#This Row],[UDSTEDELSESDATO]],\"\")","v":{"v":120,"d":"120 dage"}}]
[null,"VARE 0008","kopimaskine","Medarbejder 12",{"$f":"TODAY()-499","v":"2011-07-17"},{"$f":"IF(tblUdstyrslagerliste[[#This Row],[UDSTEDELSESDATO]]<>\"\",TODAY()-tblUdstyrslagerliste[[#This Row],[UDSTEDELSESDATO]],\"\")","v":{"v":499,"d":"499 dage"}}]
[null,"VARE 0009","ekstra skærm","Medarbejder 8",{"$f":"TODAY()-30","v":"2012-10-28"},{"$f":"IF(tblUdstyrslagerliste[[#This Row],[UDSTEDELSESDATO]]<>\"\",TODAY()-tblUdstyrslagerliste[[#This Row],[UDSTEDELSESDATO]],\"\")","v":{"v":30,"d":"30 dage"}}]
[null,"VARE 0010","whiteboard","Medarbejder 19",{"$f":"TODAY()-50","v":"2012-10-08"},{"$f":"IF(tblUdstyrslagerliste[[#This Row],[UDSTEDELSESDATO]]<>\"\",TODAY()-tblUdstyrslagerliste[[#This Row],[UDSTEDELSESDATO]],\"\")","v":{"v":50,"d":"50 dage"}}]
[null,"VARE 0011","kopimaskine","Medarbejder 12",{"$f":"TODAY()-450","v":"2011-09-04"},{"$f":"IF(tblUdstyrslagerliste[[#This Row],[UDSTEDELSESDATO]]<>\"\",TODAY()-tblUdstyrslagerliste[[#This Row],[UDSTEDELSESDATO]],\"\")","v":{"v":450,"d":"450 dage"}}]
[null,"VARE 0012","kontorhold","Medarbejder 18",{"$f":"TODAY()-420","v":"2011-10-04"},{"$f":"IF(tblUdstyrslagerliste[[#This Row],[UDSTEDELSESDATO]]<>\"\",TODAY()-tblUdstyrslagerliste[[#This Row],[UDSTEDELSESDATO]],\"\")","v":{"v":420,"d":"420 dage"}}]
[null,"VARE 0013","ekstra skærm","Medarbejder 8",{"$f":"TODAY()-250","v":"2012-03-22"},{"$f":"IF(tblUdstyrslagerliste[[#This Row],[UDSTEDELSESDATO]]<>\"\",TODAY()-tblUdstyrslagerliste[[#This Row],[UDSTEDELSESDATO]],\"\")","v":{"v":250,"d":"250 dage"}}]
[null,"VARE 0014","kaffemaskine","Medarbejder 9",{"$f":"TODAY()-45","v":"2012-10-13"},{"$f":"IF(tblUdstyrslagerliste[[#This Row],[UDSTEDELSESDATO]]<>\"\",TODAY()-tblUdstyrslagerliste[[#This Row],[UDSTEDELSESDATO]],\"\")","v":{"v":45,"d":"45 dage"}}]
[null,"VARE 0015","kontorhold","Medarbejder 13",{"$f":"TODAY()-502","v":"2011-07-14"},{"$f":"IF(tblUdstyrslagerliste[[#This Row],[UDSTEDELSESDATO]]<>\"\",TODAY()-tblUdstyrslagerliste[[#This Row],[UDSTEDELSESDATO]],\"\")","v":{"v":502,"d":"502 dage"}}]
[null,"VARE 0016","scanner","Medarbejder 1",{"$f":"TODAY()-350","v":"2011-12-13"},{"$f":"IF(tblUdstyrslagerliste[[#This Row],[UDSTEDELSESDATO]]<>\"\",TODAY()-tblUdstyrslagerliste[[#This Row],[UDSTEDELSESDATO]],\"\")","v":{"v":350,"d":"350 dage"}}]
[null,"VARE 0017","kopimaskine","Medarbejder 19",{"$f":"TODAY()-125","v":"2012-07-25"},{"$f":"IF(tblUdstyrslagerliste[[#This Row],[UDSTEDELSESDATO]]<>\"\",TODAY()-tblUdstyrslagerliste[[#This Row],[UDSTEDELSESDATO]],\"\")","v":{"v":125,"d":"125 dage"}}]
[null,"VARE 0018","whiteboard","Medarbejder 15",{"$f":"TODAY()-90","v":"2012-08-29"},{"$f":"IF(tblUdstyrslagerliste[[#This Row],[UDSTEDELSESDATO]]<>\"\",TODAY()-tblUdstyrslagerliste[[#This Row],[UDSTEDELSESDATO]],\"\")","v":{"v":90,"d":"90 dage"}}]
[null,"VARE 0019","stol","Medarbejder 16",{"$f":"TODAY()-730","v":"2010-11-28"},{"$f":"IF(tblUdstyrslagerliste[[#This Row],[UDSTEDELSESDATO]]<>\"\",TODAY()-tblUdstyrslagerliste[[#This Row],[UDSTEDELSESDATO]],\"\")","v":{"v":730,"d":"730 dage"}}]
[null,"VARE 0020","støvklud (1 sæt)","Medarbejder 3",{"$f":"TODAY()-540","v":"2011-06-06"},{"$f":"IF(tblUdstyrslagerliste[[#This Row],[UDSTEDELSESDATO]]<>\"\",TODAY()-tblUdstyrslagerliste[[#This Row],[UDSTEDELSESDATO]],\"\")","v":{"v":540,"d":"540 dage"}}]
[null,"VARE 0021","laserprinter","Medarbejder 7",{"$f":"TODAY()-18","v":"2012-11-09"},{"$f":"IF(tblUdstyrslagerliste[[#This Row],[UDSTEDELSESDATO]]<>\"\",TODAY()-tblUdstyrslagerliste[[#This Row],[UDSTEDELSESDATO]],\"\")","v":{"v":18,"d":"18 dage"}}]
[null,"VARE 0022","bærbar computer","Medarbejder 8",{"$f":"TODAY()-283","v":"2012-02-18"},{"$f":"IF(tblUdstyrslagerliste[[#This Row],[UDSTEDELSESDATO]]<>\"\",TODAY()-tblUdstyrslagerliste[[#This Row],[UDSTEDELSESDATO]],\"\")","v":{"v":283,"d":"283 dage"}}]
[null,"VARE 0023","kontorhold","Medarbejder 9",{"$f":"TODAY()-479","v":"2011-08-06"},{"$f":"IF(tblUdstyrslagerliste[[#This Row],[UDSTEDELSESDATO]]<>\"\",TODAY()-tblUdstyrslagerliste[[#This Row],[UDSTEDELSESDATO]],\"\")","v":{"v":479,"d":"479 dage"}}]
[null,"VARE 0024","laserprinter","Medarbejder 19",{"$f":"TODAY()-355","v":"2011-12-08"},{"$f":"IF(tblUdstyrslagerliste[[#This Row],[UDSTEDELSESDATO]]<>\"\",TODAY()-tblUdstyrslagerliste[[#This Row],[UDSTEDELSESDATO]],\"\")","v":{"v":355,"d":"355 dage"}}]
[null,"VARE 0025","bord","Medarbejder 7",{"$f":"TODAY()-28","v":"2012-10-30"},{"$f":"IF(tblUdstyrslagerliste[[#This Row],[UDSTEDELSESDATO]]<>\"\",TODAY()-tblUdstyrslagerliste[[#This Row],[UDSTEDELSESDATO]],\"\")","v":{"v":28,"d":"28 dage"}}]
[null,"VARE 0026","whiteboard","Medarbejder 8",{"$f":"TODAY()-28","v":"2012-10-30"},{"$f":"IF(tblUdstyrslagerliste[[#This Row],[UDSTEDELSESDATO]]<>\"\",TODAY()-tblUdstyrslagerliste[[#This Row],[UDSTEDELSESDATO]],\"\")","v":{"v":28,"d":"28 dage"}}]
[null,"VARE 0027","bærbar computer","Medarbejder 19",{"$f":"TODAY()-736","v":"2010-11-22"},{"$f":"IF(tblUdstyrslagerliste[[#This Row],[UDSTEDELSESDATO]]<>\"\",TODAY()-tblUdstyrslagerliste[[#This Row],[UDSTEDELSESDATO]],\"\")","v":{"v":736,"d":"736 dage"}}]
[null,"VARE 0028","bord","Medarbejder 12",{"$f":"TODAY()-68","v":"2012-09-20"},{"$f":"IF(tblUdstyrslagerliste[[#This Row],[UDSTEDELSESDATO]]<>\"\",TODAY()-tblUdstyrslagerliste[[#This Row],[UDSTEDELSESDATO]],\"\")","v":{"v":68,"d":"68 dage"}}]
[null,"VARE 0029","scanner","Medarbejder 14",{"$f":"TODAY()-67","v":"2012-09-21"},{"$f":"IF(tblUdstyrslagerliste[[#This Row],[UDSTEDELSESDATO]]<>\"\",TODAY()-tblUdstyrslagerliste[[#This Row],[UDSTEDELSESDATO]],\"\")","v":{"v":67,"d":"67 dage"}}]
[null,"VARE 0030","kaffemaskine","Medarbejder 3",{"$f":"TODAY()-149","v":"2012-07-01"},{"$f":"IF(tblUdstyrslagerliste[[#This Row],[UDSTEDELSESDATO]]<>\"\",TODAY()-tblUdstyrslagerliste[[#This Row],[UDSTEDELSESDATO]],\"\")","v":{"v":149,"d":"149 dage"}}]

{"sheet":"Indstillinger","index":1,"n_rows":23,"n_cols":4,"rows_kept":23}
[]
[]
[null,"MEDARBEJDERE",null,"VARER"]
[null,"Medarbejder 1",null,"stol"]
[null,"Medarbejder 2",null,"kaffemaskine"]
[null,"Medarbejder 3",null,"kopimaskine"]
[null,"Medarbejder 4",null,"stationær computer"]
[null,"Medarbejder 5",null,"støvklud (1 sæt)"]
[null,"Medarbejder 6",null,"ekstra skærm"]
[null,"Medarbejder 7",null,"blækprinter"]
[null,"Medarbejder 8",null,"bærbar computer"]
[null,"Medarbejder 9",null,"laserprinter"]
[null,"Medarbejder 10",null,"tuscher (3-pak)"]
[null,"Medarbejder 11",null,"scanner"]
[null,"Medarbejder 12",null,"kontorhold"]
[null,"Medarbejder 13",null,"bord"]
[null,"Medarbejder 14",null,"UB-drev"]
[null,"Medarbejder 15",null,"whiteboard"]
[null,"Medarbejder 16"]
[null,"Medarbejder 17"]
[null,"Medarbejder 18"]
[null,"Medarbejder 19"]
[null,"Medarbejder 20"]